Cogmind - Beta 13 @@@ ROGUE MODE // 2024.03.31 @ 13:40:08 Player: Yovador Result: Destroyed by G-34 Mercenary with Small Laser Performance ------------- Evolutions (0) 0 Regions Visited (1) 200 Robots Destroyed (25) 125 Value Destroyed (622) 622 Prototype IDs (0) 0 Alien Tech Used (0) 0 Bonus (0) 0 TOTAL SCORE: 947 Bonus ------- None Cogmind --------- Core Integrity 0/250 Matter 241/300 Energy 93/100 System Corruption 1% Temperature Cool (6) Movement Walking (400) Ox4 Location -10/Materials Parts ------- > --- POWER (1) -------- (None) > --- PROPULSION (2) --- Aluminum Leg Aluminum Leg > --- UTILITY (2) ------ Huge Storage Unit Weapon Shielding > --- WEAPON (2) ------- Small Laser Welding Torch > --- INVENTORY (25) --- Light Ion Engine Light Treads Compact Wheel Compact Wheel Signal Interpreter Light Cannon Mining Laser Peak State ------------ > --- POWER ------------ Light Ion Engine > --- PROPULSION ------- Light Treads Light Treads > --- UTILITY ---------- Small Storage Unit Weapon Shielding > --- WEAPON ----------- Assault Rifle Light Assault Rifle > --- INVENTORY -------- Light Ion Engine Aluminum Leg Aluminum Leg Compact Wheel Compact Wheel [Rating: 7] Favorites ----------- Power Light Ion Engine Engine Light Ion Engine Propulsion Light Treads Treads Light Treads Leg Aluminum Leg Utility Weapon Shielding Storage Huge Storage Unit Protection Weapon Shielding Weapon Light Assault Rifle Energy Gun EM Pulse Gun Ballistic Gun Light Assault Rifle Ballistic Cannon Light Cannon Special Weapon Welding Torch Build | -11 -10 ------- Run | Yrd Mat Slots Evolved . | . . Power . | . . Propulsion . | . . Utility . | . . Weapon . | . . Parts Attached 18 | 6 12 Power 2 | 1 1 Engine 2 | 1 1 Core . | . . Reactor . | . . Propulsion 4 | 2 2 Treads 2 | 2 . Leg 2 | . 2 Wheel . | . . Hover . | . . Flight . | . . Utility 4 | 1 3 Device . | . . Storage 2 | 1 1 Processor . | . . Hackware . | . . Protection 2 | . 2 Artifact . | . . Weapon 8 | 2 6 Energy Gun 2 | . 2 Energy Cannon . | . . Ballistic Gun 3 | 2 1 Ballistic Cannon 1 | . 1 Launcher . | . . Special Weapon 2 | . 2 Impact Weapon . | . . Slashing Weapon . | . . Piercing Weapon . | . . Special Melee Weapon . | . . Unidentified Prototypes . | . . Parts Lost 5 | . 5 Power 2 | . 2 Propulsion . | . . Utility 1 | . 1 Weapon 2 | . 2 Highest Loss Streak 2 | . 2 To Critical Strikes . | . . Average Slot Usage (%) 92 | . 92 Engine 10 | . 10 Treads 20 | . 20 Leg 4 | . 4 Storage 14 | . 14 Protection 13 | . 13 Energy Gun 6 | . 6 Ballistic Gun 20 | . 20 Naked Turns . | . . Heaviest Build 87 | 11 87 Greatest Support 40 | 40 40 Greatest Overweight (x) 4 | . 4 Average Overweight (x) 1 | . 2 Largest Inventory Capacity 25 | 8 25 Average Capacity 21 | 7 24 Most Carried 9 | 5 9 Average Carried 6 | 4 7 Final Capacity 25 | 8 25 Final Carried 7 | 5 7 Class Distribution -------------------- 100% | Mutant Dominant Class ---------------- Mutant | -10/Materials Resources | -11 -10 ----------- Run | Yrd Mat Matter Collected 418 | 198 220 Remotely . | . . Salvage Created 912 | . 912 Parts 50 | . 50 Haulers Intercepted . | . . Recyclers Shooed . | . . Parts Field Recycled . | . . Retrieved Matter . | . . Parts Self-Destructed . | . . Prevented . | . . Kills | -11 -10 ------- Run | Yrd Mat Combat Hostiles Destroyed 18 | . 18 Guns 15 | . 15 Cannons 3 | . 3 Classes Destroyed 6 | . 6 Worker 3 | . 3 Builder 1 | . 1 Recycler 2 | . 2 Watcher 1 | . 1 Swarmer 3 | . 3 Grunt 15 | . 15 Best Kill Streak 9 | . 9 Combat Bots Only 6 | . 6 Max Kills in Single Turn 2 | . 2 Gunslinging . | . . Exploded . | . . Melee . | . . Uniques/NPCs Destroyed . | . . Combat | -11 -10 -------- Run | Yrd Mat Hostile Shots Fired 115 | . 115 Missed 29 | . 29 Damage Taken 1091 | . 1091 Core 259 | . 259 Absorbed by Shields . | . . Redirected to Shielding 91 | . 91 Regen/Repaired (Parts) 95 | . 95 Core Remaining (%) 100 | 100 . Volleys Fired 84 | 1 83 Largest 2 | 2 2 Hottest 60 | 40 60 Shots Fired 147 | 2 145 Gun 139 | 2 137 Cannon 7 | . 7 Launcher . | . . Special 1 | . 1 Kinetic 112 | 2 110 Thermal 2 | . 2 Explosive . | . . Electromagnetic 33 | . 33 Robot Hit Streak 15 | . 15 Robot Miss Streak 12 | . 12 Penetration Max . | . . Secondary Targets . | . . Shots Hit Robots 76 | . 76 Core Hits 44 | . 44 Critical Kills . | . . Critical Parts Destroyed . | . . Critical Strikes . | . . Melee Attacks . | . . Impact . | . . Slashing . | . . Piercing . | . . Sneak Attacks . | . . Combat Hostiles . | . . Follow-up Attacks . | . . Damage Inflicted 1196 | . 1196 Guns 699 | . 699 Cannons 121 | . 121 Explosions 376 | . 376 Melee . | . . Ramming . | . . Kinetic 632 | . 632 Thermal 183 | . 183 Explosive . | . . Electromagnetic 381 | . 381 Impact . | . . Slashing . | . . Piercing . | . . Highest Corruption 1 | . 1 Average Corruption 1 | . 1 Corruption Purged . | . . Corruption Blocked . | . . Effects 7 | . 7 Message Errors 2 | . 2 Matter Fused 1 | . 1 Energy Discharges 4 | . 4 Overload Shots . | . . Overflow Damage . | . . Projectiles . | . . Explosions . | . . Melee . | . . Knockbacks 3 | . 3 Impact . | . . Kinetic 3 | . 3 Secondary . | . . Self-Inflicted Damage 104 | . 104 Shots 4 | . 4 Rammed . | . . Targets Rammed . | . . Kicked . | . . Crushed . | . . Highest Temperature 86 | . 86 Average Temperature 22 | . 22 Received Heat Transfer 516 | . 516 Siege Activations . | . . Robots Corrupted . | . . Combat Hostiles . | . . Parts Fried 1 | . 1 Impact Corruptions . | . . Robots Melted . | . . Combat Hostiles . | . . Parts Melted 1 | . 1 Heat Transferred 300 | . 300 Parts Sabotaged . | . . Parts Stolen . | . . Parts Stripped . | . . Power Chain Reactions 3 | . 3 Alert | -11 -10 ------- Run | Yrd Mat Peak Influence 297 | . 297 Initial . | . . Average 43 | . 51 Maximum Alert Level 1 | . 1 Low Security (%) 97 | 100 97 Level 1 2 | . 2 Level 2 . | . . Level 3 . | . . Level 4 . | . . Level 5 . | . . High Security . | . . Max Security . | . . Squads Dispatched 7 | . 7 Investigation 5 | . 5 Extermination . | . . Reinforcement 2 | . 2 Assault . | . . Garrison . | . . Intercept . | . . Searches Triggered . | . . Construction Impeded . | . . Haulers Reinforced . | . . Active Scanning Responses . | . . Cargo Convoy Interrupts . | . . Stealth | -11 -10 --------- Run | Yrd Mat Distress Signals 2 | . 2 Communications Jammed . | . . Distress Signals . | . . Times Spotted 28 | . 28 Peak Tracking Total 4 | . 4 Tactical Retreats 4 | . 4 Traps | -11 -10 ------- Run | Yrd Mat Traps Triggered 3 | . 3 Indirectly . | . . Trap Hack Attempts . | . . Triggered . | . . Disarmed . | . . Reprogrammed . | . . Reused . | . . Traps Extracted . | . . Installed . | . . Triggered . | . . Machines | -11 -10 ---------- Run | Yrd Mat Machines Disabled 2 | . 2 Max in Single Turn 1 | . 1 Machines Repaired . | . . Machines Dismantled . | . . Machines Sabotaged . | . . Overloaded Fab Kills . | . . Hacking | -11 -10 --------- Run | Yrd Mat Machines Accessed 5 | . 5 Terminals 3 | . 3 Fabricators . | . . Repair Stations 1 | . 1 Recycling Units 1 | . 1 Scanalyzers . | . . Garrison Access . | . . Total Hacks 17 | . 17 Successful 10 | . 10 Failed 7 | . 7 Catastrophic 1 | . 1 Database Lockouts . | . . Manual . | . . Terminals 9 | . 9 Fabricators . | . . Repair Stations 3 | . 3 Recycling Units 5 | . 5 Scanalyzers . | . . Garrison Access . | . . Terminal Hacks 3 | . 3 Alert Level 1 | . 1 Unreport Threat 1 | . 1 Patrol Status 1 | . 1 Fabricator Hacks . | . . Repair Station Hacks 2 | . 2 Scan Component 1 | . 1 Repair 1 | . 1 Recycling Unit Hacks 5 | . 5 Recycle Component 1 | . 1 Process 1 | . 1 Report Inventory 1 | . 1 Retrieve Matter 1 | . 1 Retrieve Components 1 | . 1 Scanalyzer . | . . Garrison Access Hacks . | . . Unauthorized Hacks . | . . Terminals . | . . Fabricators . | . . Repair Stations . | . . Recycling Units . | . . Scanalyzers . | . . Garrison Access . | . . Data Cores Recovered . | . . Used . | . . Hacking Detections 5 | . 5 Full Trace Events 3 | . 3 Feedback Events . | . . Feedback Blocked . | . . Robot Schematics Acquired . | . . Robots Built . | . . Authchips . | . . Time . | . . Total Robot Build Rating . | . . Part Schematics Acquired . | . . Parts Built . | . . Authchips . | . . Time . | . . Total Part Build Rating . | . . Parts Repaired 1 | . 1 Time 26 | . 26 Parts Recycled 1 | . 1 Recycled Matter 137 | . 137 Retrieved Matter 137 | . 137 Retrieved Components . | . . Parts Scanalyzed . | . . Part Schematics Acquired . | . . Parts Damaged . | . . Bothacking | -11 -10 ------------ Run | Yrd Mat Used RIF Installer . | . . Robots Hacked . | . . Non-combat . | . . Combat . | . . Robot Hacks Applied . | . . Relay Couplers Released . | . . Fabnet Peak Effective % . | . . Robots Rewired . | . . Allies Hacked . | . . Hacks Repelled . | . . Allies | -11 -10 -------- Run | Yrd Mat Total Allies . | . . Largest Group . | . . Highest-Rated Group . | . . Highest-Rated Ally . | . . Total Orders . | . . Ally Attacks . | . . Total Damage . | . . Kills . | . . Allies Corrupted . | . . Allies Melted . | . . Intel | -11 -10 ------- Run | Yrd Mat Robot Analysis Total . | . . Derelict Logs Recovered . | . . Drone Launches . | . . Drone Recoveries . | . . Exploration | -11 -10 ------------- Run | Yrd Mat Turns Passed 2259 | 356 1903 Spaces Moved 717 | 217 500 Core 10 | 10 . Treads 654 | 207 447 Legs 53 | . 53 Wheels . | . . Hover . | . . Flight . | . . Fastest Speed 50 | 50 160 Average Speed 277 | 154 331 Slowest Speed 480 | 160 480 Overloaded Moves . | . . Propulsion Burnouts . | . . Robots Hopped . | . . Cave-ins Triggered . | . . Exploration Rate (%) 43 | 13 73 Regions Visited 1 Branch Regions . Pre-discovered Areas . | . . Known Exits Taken . | . . Unknown Exits Taken 1 | 1 . Scrap Searched . | . . Spaces Dug . | . . Terrain Destroyed 7 | . 7 Melee . | . . Projectile . | . . AOE 7 | . 7 Terrain Rammed . | . . Walls Destroyed . | . . Machines Disabled . | . . Actions | -11 -10 --------- Run | Yrd Mat Total 850 | 236 614 Wait 8 | . 8 Move 716 | 216 500 Hop . | . . Pick Up 22 | 12 10 Fast Attach . | . . Attach 12 | 6 6 Detach . | . . Swap 6 | . 6 Drop 2 | 1 1 Fire 84 | 1 83 Melee . | . . Ram . | . . Kick . | . . Crush . | . . Escape Stasis . | . . Rewire . | . . Trap . | . . Miscellaneous . | . . Route ------- -11/Scrapyard -10/Materials (discovered 2 exits: [*Mat] / [*Min]) History --------- Turn | Location | Event 6 | -11/Scrapyard | Discovered new exit (range 16) 357 | -11/Scrapyard | Entered Materials 358 | -10/Materials | Build established: Mutant 999 | -10/Materials | Discovered new exit (range 9) 1269 | -10/Materials | Discovered new exit (range 15) 1624 | -10/Materials | Repaired Lgt. Treads 2198 | -10/Materials | Core integrity fell below 50% 2229 | -10/Materials | Core integrity fell below 20% 2260 | -10/Materials | Destroyed by G-34 Mercenary with Small Laser Last Messages --------------- K-01 Serf collects debris. U-05 Engineer builds a Wall. K-01 Serf collects debris. Lgt. Assault Rifle destroyed. G-34 Mercenary knocked back. K-01 Serf collects debris. G-34 Mercenary knocked back. K-01 Serf collects debris. G-34 Mercenary destroyed. K-01 Serf collects debris. G-34 Mercenary destroyed. U-05 Engineer builds a Wall. K-01 Serf collects debris. Acquired Welding Torch. U-05 Engineer builds a Wall. K-01 Serf collects debris. G-34 Mercenary destroyed. K-01 Serf collects debris. Acquired Sml. Laser. K-01 Serf collects debris. Map ----- +----------------------------------------------------+ | ?????# ^ ???? #?? | | ?????# ^^#?????? =% #?? | | ?????# #????????# ! #?? | | ?????# #?????????# #?? | | ?????# #?????????# #### #?? | | ?????# #?????????# "" #??#= #?? | | ?????# #?????????# "Y% #??# #?? | | ?????# % #?????????# "" #??# ? | | ?????#=*%+?????????# """ """ #??# | | ?????# [=#????????## """ """ #??# | | ?????# *#????????# """ """ #??## #### | | ?????# %#????????# """ """ #???? #??? | | ?????# #????????# #???? #??? | | ?????# ########## #???? #??? | | ?????# =% ############+###????+#??? | | ?????# ################???????????????????????? | | ?????# #???????????????????????#??????????????? | | ?????# #?????????????????????? #??????????????? | | ?????# ###########?????????? ##??????????????? | | ?????# # #????????? ???????????????? | | ?????# # """ """ #???????? ?????????????????? | | ?????# # """ """ #??????? ??????????????????? | | ?????# # """ """ #???### ?????########???????? | | ?????# # #?########## ## ######## | | ?????# + r #####=== | | ?????# # g/%== @%!% < | | ?????# # #####!k%[ | | ?????# ###########?###%*%!!! ## ## ### | | ?????# #???????????? !*!=!!! #?????????# #?? | | ?????# ??????????? = %!! #?????????# #?? | | ?????# ?????????? T #?????????# #?? | | ?????+ ???????? #?????????# #?? | | ?????# #???????## ##+################ #?? | | ?????# #????????######???????# # ### | | ?????# ??????????????????????# + | | ?????# ??????????????????????# # %% | | ?????# ??????????????????????# # """ | | ?????# ??????????????????????# ""T"" # """ | | ?????+ ??????????????????????# """"" # """ | | ?????? ??????????????????????# # | | ???????????????????????????????############ | | ???????????????????????????????############ """ | | ???????????????????????????????# """ | | ???????????????????????????????# """ | | ???????????????????????????????# | | ?????????????????????########### | | ?????????????????????# # | | ?????????????????????# =# #########+#### | | ?????????????????????# """ """%# ##### | | ?????????????????????# """ """ + + | +----------------------------------------------------+ Best States ------------- Heat Dissipation 25 Energy Generation 10 Energy Capacity 125 Matter Stores 300 Matter Capacity 300 Sight Range 16 Terrain Scan Density 10 Weapon Shielding 33 Evasion (%) 50 Recoil Reduction 2 Item Schematics ----------------- None Robot Schematics ------------------ None Fabricated ------------ Nothing Alien Tech Used ----------------- None Achievements -------------- Everything Is Under Control Part-time Mechanic Challenges ------------ None Game ------ Seed BiocellDerelictGreatsword Manual? 0 Play Time 00:15:17 Cumulative 1.4 hours Start 2024.03.31 @ 13:28:08 End 2024.03.31 @ 13:40:08 Sessions 1 Manual Loads 0 Difficulty Rogue Special Mode None Game No. 4 Rogue 4 Adventurer 0 Explorer 0 Win Type - Total 0 Types 0/0/0/0/0/0/0/0/0 Lore% 0 Gallery% 4 Achievement% 3 Wizard Run 0 Options --------- Layout 1 ASCII 0 Keyboard 0 Movement Arrows Keybinds 0 Fullscreen 1 Font 24/Smallcaps Map View 50x35 Zoom Use 0% Tactical HUD 0 Map Filters NONE Filters NONE Steam 1 RUN: 1396d832-ee1a-418f-b35a-c1a8bc4a3d12